bitfinex-derivatives/quotes_ETHF0:USTF0_20240910
["timestamp","ask_amount","ask_price","bid_price","bid_amount"]
[1725989213329,0.42441,2356.1,2356.0,0.42442]
[1725989213826,0.4244,2356.2,2356.0,0.42442]
[1725989214028,0.42441,2356.1,2355.9,0.42443]
[1725989214236,0.4244,2356.2,2356.0,0.42442]
[1725989214430,1.45164,2356.3,2355.8,20.2]
[1725989214730,0.42441,2356.1,2355.9,0.42444]
[1725989215234,0.3881,2356.0,2355.9,0.42444]
[1725989215831,4.6329,2356.0,2355.3,7.427]
[1725989216030,0.42447,2355.8,2355.6,0.42449]
[1725989216226,0.3654,2355.7,2355.6,0.42449]
[1725989216434,0.3654,2355.7,2355.6,20.2]
[1725989216738,0.3654,2355.7,2355.6,20.62449]
[1725989219531,0.3654,2355.7,2355.6,20.2]
[1725989219532,0.78988,2355.7,2355.6,20.2]
[1725989219832,0.42453,2355.5,2355.3,0.42454]
[1725989220131,0.3933,2355.6,2355.0,3.3872]
[1725989220336,0.3933,2355.6,2355.5,0.42451]
[1725989220728,0.78988,2355.7,2355.5,0.42451]
[1725989220926,0.3654,2355.7,2355.6,0.42449]
[1725989221123,0.78989,2355.7,2355.5,0.4245]
[1725989221327,0.3654,2355.7,2355.1,3.31]
[1725989221524,0.42458,2355.2,2355.0,0.42459]
[1725989221728,0.7747,2355.1,2354.9,3.73461]
[1725989221928,0.7747,2355.1,2354.8,20.2]
[1725989222136,0.42461,2355.0,2354.8,20.62463]
[1725989222540,0.4246,2355.0,2354.8,20.62463]
[1725989223127,0.4246,2355.0,2354.6,0.42467]
[1725989223128,0.42464,2354.8,2354.6,0.42467]
[1725989223531,1.1647,2355.1,2354.4,0.4247]
[1725989223532,1.06156,2354.9,2354.4,0.4247]
[1725989223726,1.06165,2354.7,2354.1,3.73475]
[1725989223941,0.42472,2354.4,2354.1,3.31]
[1725989224136,0.3958,2354.3,2354.2,0.42475]
[1725989224433,0.3958,2354.3,2353.9,3.31]
[1725989224640,0.3958,2354.3,2354.1,0.42475]
[1725989224936,0.42475,2354.2,2354.1,20.2]
[1725989225247,0.3958,2354.3,2353.8,0.42482]
[1725989225248,0.42479,2354.0,2353.8,0.42482]
[1725989225737,0.42479,2354.0,2353.9,20.2]
[1725989225941,0.80308,2354.1,2353.9,20.2]
[1725989226337,0.3783,2354.1,2353.9,20.2]
[1725989226645,0.3783,2354.1,2353.9,20.6248]
[1725989227229,0.42478,2354.0,2353.9,20.2]
[1725989227440,0.80308,2354.1,2353.9,20.2]
[1725989228236,0.42479,2354.0,2353.6,0.42484]
[1725989228443,0.4248,2353.9,2353.6,0.42484]
[1725989228636,0.8013,2354.0,2353.6,0.42484]
[1725989228937,0.3765,2354.0,2353.5,3.31]
[1725989229144,0.3765,2354.0,2353.3,7.427]
[1725989229346,0.80308,2354.1,2353.7,3.31]
[1725989229533,0.80308,2354.1,2353.8,0.42482]
[1725989229734,0.4248,2354.0,2353.7,3.73483]
[1725989230050,0.3783,2354.1,2353.4,3.31]
[1725989230344,3.31,2354.0,2353.4,0.42488]
[1725989230645,0.42487,2353.5,2353.0,4.117]
[1725989230843,1.5428,2353.4,2353.0,0.42496]
[1725989231034,0.42491,2353.3,2352.9,0.42497]
[1725989231438,0.42491,2353.3,2352.6,7.427]
[1725989231439,1.1179,2353.4,2353.0,3.31]
[1725989231741,0.7414,2353.4,2353.2,0.42492]
[1725989231937,0.7414,2353.4,2353.0,3.31]
[1725989232139,0.7414,2353.4,2353.2,0.42492]
[1725989232338,0.7414,2353.4,2353.3,0.42491]
[1725989232637,0.7414,2353.4,2353.2,0.42491]
[1725989232839,3.7127,2353.8,2353.4,0.42489]
[1725989232840,0.82753,2353.8,2353.4,0.42489]
[1725989233042,0.4027,2353.8,2353.2,3.31]
[1725989233538,0.82753,2353.8,2353.4,0.42488]
[1725989233849,0.42484,2353.7,2353.3,0.42491]
[1725989234351,0.4027,2353.8,2353.3,0.42491]
[1725989234644,0.42486,2353.6,2353.0,20.2]
[1725989234842,0.4027,2353.8,2353.0,20.2]
[1725989235046,0.4027,2353.8,2353.3,0.42489]
[1725989235047,0.42485,2353.7,2353.3,0.42489]
[1725989235246,0.4027,2353.8,2353.4,0.42489]
[1725989235447,0.82753,2353.8,2353.0,20.2]
[1725989235640,0.42484,2353.7,2353.4,0.42488]
[1725989236541,0.82752,2353.8,2353.5,0.42486]
[1725989236749,0.7414,2353.9,2353.6,0.42485]
[1725989236948,0.42482,2353.8,2353.5,0.42486]
[1725989237447,1.16621,2353.9,2353.6,0.42485]
[1725989237640,0.42482,2353.8,2353.1,5.14237]
[1725989237840,1.16621,2353.9,2353.6,0.42485]
[1725989238046,0.7414,2353.9,2353.2,1.4411]
[1725989238345,0.7414,2353.9,2353.7,0.42483]
[1725989240147,0.7414,2353.9,2353.8,0.42482]
[1725989240448,0.7414,2353.9,2353.7,0.42483]
[1725989241551,0.7414,2353.9,2353.4,1.06223]
[1725989241753,0.7414,2353.9,2353.7,0.42482]
[1725989241943,0.7414,2353.9,2353.4,1.06221]
[1725989242145,1.1662,2353.9,2353.7,0.42483]
[1725989242348,0.7414,2353.9,2353.4,1.06221]
[1725989242551,1.1662,2353.9,2353.7,0.42483]
[1725989242852,0.3769,2353.9,2353.8,0.42482]
[1725989244942,0.8017,2353.9,2353.7,0.42483]
[1725989245157,0.3663,2353.8,2353.7,0.42483]
[1725989245346,0.3663,2353.8,2353.7,0.42484]
[1725989247747,0.3769,2353.9,2353.8,0.42482]
[1725989247953,0.8017,2353.9,2353.8,0.42482]
[1725989248558,0.3769,2353.9,2353.8,0.42482]
[1725989250156,1.06153,2355.0,2354.3,0.42472]
[1725989250344,1.06153,2355.0,2354.2,0.42474]
[1725989250345,0.7568,2354.4,2354.2,0.42474]
[1725989250549,1.18152,2354.4,2354.2,0.42474]
[1725989250749,1.18152,2354.4,2354.2,20.62474]
[1725989251154,1.18152,2354.4,2354.2,0.42474]
[1725989251354,1.18152,2354.4,2353.9,4.08]
[1725989251549,0.42474,2354.3,2354.1,0.42476]
[1725989251959,0.7568,2354.4,2354.0,20.2]
[1725989252157,0.7568,2354.4,2353.7,4.54183]
[1725989252158,0.4248,2354.0,2353.7,4.54183]
[1725989252357,1.8186,2354.4,2353.4,4.08]
[1725989252358,1.18931,2353.9,2353.4,4.08]
[1725989252548,1.18931,2353.9,2353.7,0.42483]
[1725989252951,0.7645,2353.9,2353.8,0.42482]
[1725989253257,0.7645,2353.9,2353.7,0.42483]
[1725989253457,0.42482,2353.8,2353.2,4.117]
[1725989253648,0.42482,2353.8,2353.1,5.14233]
[1725989253649,0.7645,2353.9,2353.7,0.42484]
[1725989254258,1.18931,2353.9,2353.7,0.42484]
[1725989256356,0.7645,2353.9,2353.8,0.42482]
[1725989259652,1.18931,2353.9,2353.5,3.32]
[1725989259854,0.42482,2353.8,2353.7,0.42482]
[1725989260161,0.42482,2353.8,2353.4,21.26222]
[1725989260162,0.42482,2353.8,2353.6,0.42484]
[1725989260356,1.18931,2353.9,2353.7,0.42484]
[1725989261260,1.18931,2353.9,2353.5,0.42486]
[1725989261261,0.42485,2353.7,2353.5,0.42486]
[1725989261465,0.42485,2353.6,2353.5,0.42486]
[1725989261656,0.42482,2353.8,2353.4,20.2]
[1725989262262,0.7645,2353.9,2353.8,0.42482]
[1725989262263,1.1893,2353.9,2353.8,0.42482]
[1725989263573,1.1893,2353.9,2353.7,0.42482]
[1725989263759,0.42482,2353.8,2353.7,0.42482]
[1725989263958,1.18931,2353.9,2353.8,0.42482]
[1725989264155,0.42483,2353.8,2353.7,0.42482]
[1725989264465,0.42482,2353.8,2353.7,0.42483]
[1725989266567,0.7645,2353.9,2353.8,0.42482]
[1725989266868,1.1893,2353.9,2353.8,0.42482]
[1725989267262,0.7645,2353.9,2353.8,0.42482]
[1725989267458,1.18931,2353.9,2353.8,0.42482]
[1725989267657,0.7645,2353.9,2353.5,3.32]
[1725989267861,0.42482,2353.8,2353.7,0.42482]
[1725989268058,1.18931,2353.9,2353.8,0.42482]
[1725989268469,0.42482,2353.8,2353.7,0.42482]
[1725989268769,0.7645,2353.9,2353.8,0.42482]
[1725989268770,1.18932,2353.9,2353.8,0.42482]
[1725989269170,0.42483,2353.8,2353.7,0.42483]
[1725989269467,1.18931,2353.9,2353.8,0.42482]
[1725989269661,0.42482,2353.8,2353.7,0.42483]
[1725989270670,1.18931,2353.9,2353.8,0.42482]
[1725989271568,0.7645,2353.9,2353.8,0.42482]
[1725989272374,1.1893,2353.9,2353.8,0.42482]
[1725989272775,0.7645,2353.9,2353.8,0.42482]
[1725989273462,0.42482,2353.8,2353.7,0.42482]
[1725989274572,1.18931,2353.9,2353.8,0.42482]
[1725989274775,0.42482,2353.8,2353.7,0.42482]
[1725989274967,1.18931,2353.9,2353.8,0.42482]
[1725989275169,0.42482,2353.8,2353.7,0.42482]
[1725989276271,1.18931,2353.9,2353.5,1.06218]
[1725989276476,1.18931,2353.9,2353.6,0.65905462]
[1725989276784,0.42482,2353.8,2353.5,1.06218]
[1725989276981,0.42482,2353.8,2353.6,0.65912442]
[1725989277280,0.42482,2353.8,2353.4,23.52]
[1725989277467,0.42486,2353.6,2353.5,0.42487]
[1725989277668,0.42489,2353.4,2353.3,0.4249]
[1725989277873,0.3771,2353.5,2353.2,1.5276301]
[1725989278087,0.3984,2353.3,2353.2,0.42493]
[1725989278376,0.3984,2353.3,2353.2,2.13931805]
[1725989278678,0.3984,2353.3,2353.2,1.08430983]
[1725989280783,0.3984,2353.3,2353.2,1.07911767]
[1725989281079,0.42485,2353.6,2353.4,0.42488]
[1725989281380,0.7672,2353.5,2353.4,0.42488]
[1725989281583,0.7672,2353.5,2353.4,1.07895855]
[1725989281781,0.3836,2353.5,2353.4,1.07895855]
[1725989281983,3.37105355,2353.8,2353.6,0.42485]
[1725989282181,0.7672,2353.8,2353.7,0.42484]
[1725989282376,0.7672,2353.8,2353.7,1.07876374]
[1725989282572,2.21805355,2353.9,2353.8,0.42482]
[1725989282781,2.64284355,2354.0,2353.8,0.65383009]
[1725989283079,2.64284355,2354.0,2353.8,0.42482]
[1725989283080,0.42479,2354.0,2353.8,0.42482]
[1725989283881,3.02863355,2354.1,2353.9,0.4248]
[1725989284084,2.21805355,2354.1,2354.0,0.42478]
[1725989284382,3.39100355,2354.2,2354.0,0.42478]
[1725989284579,1.17295,2354.2,2354.0,0.42478]
[1725989284779,0.42476,2354.1,2353.9,0.42479]
[1725989285180,2.96625355,2354.2,2353.9,0.42479]
[1725989285686,3.39101355,2354.2,2354.0,0.42478]
[1725989285885,2.96625355,2354.2,2353.8,0.42481]
[1725989286083,2.64281355,2354.1,2353.9,0.65372541]
[1725989286284,2.21805355,2354.1,2353.6,1.5012201]
[1725989286492,2.64283355,2354.1,2353.8,0.4248]
[1725989286791,0.42478,2354.1,2353.9,0.65378555]
[1725989286979,0.42478,2354.1,2353.8,0.42481]
[1725989287178,0.42478,2354.1,2353.9,0.65377169]
[1725989287380,3.27997355,2354.1,2353.6,1.1027201]
[1725989287578,0.4248,2353.9,2353.7,1.57354795]
[1725989287792,0.4248,2353.9,2353.7,0.42483]
[1725989287992,0.3797,2353.8,2353.7,0.42483]
[1725989288182,0.3797,2353.8,2353.7,1.07869001]
[1725989288893,0.3797,2353.8,2353.7,0.42483]
[1725989289082,0.3797,2353.8,2353.7,1.07867988]
[1725989289794,0.3797,2353.8,2353.7,1.57346819]
[1725989290387,0.3797,2353.8,2353.7,3.72204139]
[1725989291091,0.3797,2353.8,2353.7,2.61932129]
[1725989291787,0.3797,2353.8,2353.7,1.57346819]
[1725989291988,0.3797,2353.8,2353.7,2.61943254]
[1725989292492,2.21805355,2354.1,2354.0,0.42478]
[1725989292794,3.39431355,2354.2,2353.8,0.3965]
[1725989293092,0.42476,2354.1,2353.9,1.07849613]
[1725989293294,6.28955355,2354.2,2353.7,1.1027201]
[1725989293494,2.96955355,2354.2,2354.1,0.42476]
[1725989293697,2.96955355,2354.2,2354.0,0.42477]
[1725989293888,2.96955355,2354.2,2354.1,0.42476]
[1725989295097,1.17626,2354.2,2354.1,0.42476]
[1725989295800,1.17626,2354.2,2353.7,5.69870179]
[1725989296000,1.17626,2354.2,2354.1,0.42476]
[1725989296402,3.39431355,2354.2,2354.1,0.42476]
[1725989297094,0.7515,2354.2,2354.1,0.42476]
[1725989297501,3.39430355,2354.2,2354.1,0.42476]
[1725989297803,3.39430355,2354.2,2353.8,1.1027201]
[1725989297804,0.42479,2354.0,2353.9,0.42479]
[1725989298009,0.42477,2354.1,2354.0,0.42478]
[1725989298309,1.17625,2354.2,2354.1,0.42476]
[1725989298497,0.7515,2354.2,2354.1,0.42476]
[1725989298700,1.17625,2354.2,2354.1,0.42476]
[1725989302607,0.7515,2354.2,2354.1,0.42476]
[1725989303207,3.03498355,2354.4,2354.0,1.06196]
[1725989303514,0.7713,2354.4,2354.3,0.42473]
[1725989304407,0.3791,2354.4,2354.3,0.42473]
[1725989304611,0.3671,2354.7,2354.6,0.42467]
[1725989304914,0.3671,2354.7,2354.3,5.53153814]
[1725989304915,2.98715355,2354.9,2354.7,0.42466]
[1725989305114,0.42464,2354.8,2354.7,0.42466]
[1725989305502,1.1362,2354.9,2354.3,1.1027201]
[1725989305814,0.4247,2354.5,2354.3,0.42471]
[1725989306115,1.06165,2354.7,2354.3,0.42473]
[1725989306116,1.56092,2354.4,2354.3,0.42473]
[1725989306516,0.42475,2354.2,2354.1,20.2]
[1725989306717,5.30985,2354.3,2354.0,0.42477]
[1725989306915,0.42477,2354.1,2353.9,0.42479]
[1725989307311,0.3889,2354.0,2353.9,0.42479]
[1725989307512,0.81368,2354.0,2353.8,0.42481]
[1725989307711,0.3745,2353.9,2353.8,0.42481]
[1725989308108,0.3745,2353.9,2353.8,1.08026012]
[1725989309018,0.3745,2353.9,2353.8,0.42481]
[1725989309319,0.3745,2353.9,2353.8,1.08023782]
[1725989309505,0.3745,2353.9,2353.8,0.42481]
[1725989310814,0.3745,2353.9,2353.8,1.07979202]
[1725989311322,0.3745,2353.9,2353.8,0.42481]
[1725989311512,0.7724,2353.9,2353.8,0.42481]
[1725989312319,0.7724,2353.9,2353.8,1.08236739]
[1725989312920,0.7724,2353.9,2353.8,1.0823571]
[1725989313220,0.7724,2353.9,2353.8,1.08232485]
[1725989314221,0.7724,2353.9,2353.8,0.65751485]
[1725989314523,0.42483,2353.8,2353.6,0.42485]
[1725989315421,1.19721,2353.9,2353.7,0.42484]
[1725989317011,0.3745,2353.9,2353.7,3.32]
[1725989317224,0.3714,2354.3,2353.8,3.32]
[1725989317524,1.06187,2354.2,2353.6,4.4227201]
[1725989317723,0.42478,2354.1,2353.9,0.4248]
[1725989318224,0.42478,2354.1,2353.6,4.8248201]
[1725989318225,0.42479,2354.0,2353.8,0.42481]
[1725989318425,0.389,2353.9,2353.8,0.42481]
[1725989318615,0.389,2353.9,2353.8,1.08219018]
[1725989319618,0.389,2353.9,2353.7,0.42482]
[1725989319826,1.15962,2353.8,2353.6,0.42485]
[1725989320219,5.40842,2353.8,2353.6,0.42485]
[1725989321017,0.42484,2353.7,2353.5,0.42486]
[1725989321218,0.42484,2353.7,2353.4,0.42488]
[1725989321421,3.32,2353.7,2353.2,1.1027201]
[1725989321620,3.32,2353.5,2353.1,0.42494]
[1725989321823,3.74488,2353.5,2353.2,0.42493]
[1725989322121,0.3651,2353.4,2353.2,0.42493]
[1725989322323,0.3891,2353.3,2353.2,0.42493]
[1725989323520,0.3651,2353.4,2353.3,0.42491]
[1725989324530,0.3891,2353.6,2353.5,0.42487]
[1725989325924,0.3891,2353.6,2353.4,0.42488]
[1725989326129,0.3891,2353.6,2353.5,0.42487]
[1725989329427,0.3651,2353.7,2353.6,0.42485]
[1725989331122,0.3807,2353.9,2353.8,0.42482]
[1725989331430,0.749,2353.9,2353.8,0.42482]
[1725989331831,0.3683,2353.9,2353.8,0.42482]
[1725989332538,0.79311,2353.9,2353.7,0.42483]
[1725989332739,0.79311,2353.9,2353.8,0.42482]
[1725989333326,0.3683,2353.9,2353.4,5.4849401]
[1725989333644,0.3683,2353.9,2353.8,0.42482]
[1725989334339,0.7931,2353.9,2353.8,0.42482]
[1725989334836,0.3683,2353.9,2353.8,0.42482]
[1725989335036,14.99833,2353.9,2353.3,1.1027201]
[1725989335237,14.99833,2353.9,2353.2,3.32]
[1725989335238,0.42486,2353.6,2353.2,3.32]
[1725989335538,0.7963,2353.5,2353.4,0.42488]
[1725989337135,0.3973,2353.5,2353.4,0.42488]
[1725989337330,0.3973,2353.5,2353.4,1.08179676]
[1725989337730,0.399,2353.8,2353.7,0.42484]
[1725989340530,0.82382,2353.8,2353.7,0.42484]
[1725989340739,4.6478,2353.8,2353.7,0.42484]
[1725989341047,0.42486,2353.6,2353.5,0.42486]
[1725989341230,0.42485,2353.7,2353.2,4.38231]
[1725989341432,0.3991,2353.5,2353.4,0.42489]
[1725989341631,0.399,2353.8,2353.7,0.42484]
[1725989342043,4.6478,2353.8,2353.7,0.42484]
[1725989343741,0.399,2353.8,2353.7,0.42484]
[1725989343949,0.3991,2353.9,2353.8,0.42482]
[1725989344649,0.376,2354.1,2354.0,0.42478]
[1725989344854,1.20036,2354.1,2354.0,0.42478]
[1725989345237,0.7756,2354.1,2354.0,0.42478]
[1725989345544,1.20036,2354.1,2354.0,0.42478]
[1725989345750,1.20038,2354.1,2353.9,0.42479]
[1725989346456,1.20038,2354.1,2354.0,0.42478]
[1725989347241,0.7756,2354.1,2354.0,0.42478]
[1725989347547,1.20036,2354.1,2353.6,4.38213]
[1725989347748,1.20036,2354.1,2354.0,0.42478]
[1725989348455,0.7756,2354.1,2353.6,4.38213]
[1725989348752,1.20037,2354.1,2354.0,0.42478]
[1725989349951,5.0236,2354.1,2353.6,3.32]
[1725989350145,1.06201,2353.9,2353.5,0.42486]
[1725989350352,0.42484,2353.7,2353.4,4.117]
[1725989350651,0.3947,2353.6,2353.5,0.42487]
[1725989350854,0.7637,2353.6,2353.5,0.42487]
[1725989351052,0.42487,2353.5,2353.4,4.117]
[1725989351351,0.42491,2353.3,2353.1,0.42494]
[1725989351741,0.369,2353.2,2353.1,0.42494]
[1725989352651,0.369,2353.2,2353.1,1.08225351]
[1725989352849,0.369,2353.2,2353.1,1.0822815]
[1725989353054,0.372,2353.4,2353.3,0.42491]
[1725989355743,0.3904,2353.5,2353.4,0.42489]
[1725989357066,0.81527,2353.5,2353.4,0.42489]
[1725989357458,0.3904,2353.5,2353.4,0.42489]
[1725989358763,0.42491,2353.4,2353.0,4.4227201]
[1725989358955,0.42491,2353.3,2353.1,0.65726606]
[1725989359154,0.3757,2353.2,2353.1,0.42495]
[1725989359358,0.3757,2353.2,2353.1,1.08224897]
[1725989361064,0.3757,2353.2,2353.1,0.42495]
[1725989361272,0.3904,2353.5,2353.4,0.42489]
[1725989365169,7.9592,2353.5,2353.0,1.1027201]
[1725989365372,7.9592,2353.5,2353.2,0.42492]
[1725989365373,0.42492,2353.3,2353.2,0.42492]
[1725989369272,6.99065355,2353.5,2353.2,0.42493]
[1725989369475,0.42492,2353.3,2353.2,0.42493]
[1725989372776,4.7726,2353.5,2352.9,21.26245]
[1725989372777,0.81528,2353.5,2353.4,0.42489]
[1725989373667,0.4249,2353.4,2353.3,0.4249]
[1725989376671,0.42493,2353.3,2353.2,0.42492]
[1725989376867,3.684,2353.3,2352.9,20.2]
[1725989377067,0.79283,2353.2,2352.9,0.42497]
[1725989377374,0.79284,2353.2,2352.9,0.42497]
[1725989377573,0.3818,2353.1,2353.0,0.42496]
[1725989378179,0.80675,2353.1,2352.7,24.6227201]
[1725989378475,0.80675,2353.1,2352.8,1.08334956]
[1725989378669,0.80675,2353.1,2352.8,0.42499]
[1725989379068,0.3679,2353.2,2353.1,0.42495]
[1725989379382,0.3679,2353.2,2353.0,0.42495]
[1725989380382,0.3679,2353.2,2352.8,0.42499]
[1725989380383,3.32,2353.1,2352.8,0.42499]
[1725989380588,3.74496,2353.1,2352.8,0.42499]
[1725989380879,0.3802,2353.0,2352.8,0.42499]
[1725989382480,0.80517,2353.0,2352.8,0.42499]
[1725989383288,0.3802,2353.0,2352.9,0.42498]
[1725989383783,0.3802,2353.0,2352.8,0.42499]
[1725989383980,0.3802,2353.0,2352.9,0.42498]
[1725989384685,0.3679,2353.2,2353.1,0.42495]
[1725989384987,0.3661,2353.3,2353.2,0.42493]
[1725989385191,0.79138,2353.5,2353.3,0.4249]
[1725989385380,1.15748,2353.5,2353.3,0.4249]
[1725989385682,1.15748,2353.5,2353.4,0.42489]
[1725989385986,4.102,2353.9,2353.5,0.42487]
[1725989385987,10.70209355,2353.9,2353.5,0.42487]
[1725989386192,0.42488,2353.5,2353.2,3.32]
[1725989386489,0.42488,2353.5,2353.3,0.4249]
[1725989386881,0.42488,2353.5,2353.4,0.42489]
[1725989387288,0.42487,2353.6,2353.4,0.42489]
[1725989388187,0.42485,2353.7,2353.1,5.17934]
[1725989388388,0.42484,2353.7,2353.6,0.42484]
[1725989388691,0.7928,2353.8,2353.3,1.06228]
[1725989388880,0.42484,2353.7,2353.6,0.42484]
[1725989389075,1.21763,2353.8,2353.7,0.42484]
[1725989389280,0.7928,2353.8,2353.7,0.42484]
[1725989390094,1.21762,2353.8,2353.7,0.42484]
[1725989390387,1.21762,2353.8,2353.6,0.42484]
[1725989390584,1.21762,2353.8,2353.7,0.42484]
[1725989392286,0.42485,2353.7,2353.3,0.3873]
[1725989392483,0.42485,2353.7,2353.4,0.65816861]
[1725989392690,0.42485,2353.7,2353.5,0.42486]
[1725989392882,0.42485,2353.7,2353.6,0.42485]
[1725989393085,1.21763,2353.8,2353.3,0.3873]
[1725989393281,0.7928,2353.8,2353.3,0.3873]
[1725989393487,0.42484,2353.7,2353.6,0.42485]
[1725989394393,1.21763,2353.8,2353.7,0.42484]
[1725989394591,0.7928,2353.8,2353.7,0.42484]
[1725989395198,1.21762,2353.8,2353.7,0.42484]
[1725989395587,0.7928,2353.8,2353.7,0.42484]
[1725989395792,1.21762,2353.8,2353.7,0.42484]
[1725989396886,1.21763,2353.8,2353.7,0.42484]
[1725989397196,1.0621,2353.7,2353.3,1.1027201]
[1725989397382,1.0621,2353.7,2353.2,1.65408015]
[1725989397383,4.38214,2353.6,2353.1,4.117]
[1725989397585,0.3957,2353.5,2353.4,0.42489]
[1725989397787,2.21805355,2353.7,2353.2,0.65834631]
[1725989397788,2.64290355,2353.7,2353.6,0.42485]
[1725989397992,0.42486,2353.6,2353.5,0.42486]
[1725989398583,0.42485,2353.7,2353.6,0.42485]
[1725989398790,3.43568355,2353.8,2353.7,0.42484]
[1725989398992,3.43568355,2353.8,2353.6,0.42484]
[1725989398993,0.42484,2353.7,2353.6,0.42484]
[1725989399887,3.43568355,2353.8,2353.7,0.42484]
[1725989400393,4.1128,2353.8,2353.2,1.1027201]
[1725989400591,4.1128,2353.8,2353.3,0.65299872]
[1725989400592,0.42489,2353.4,2353.3,0.65299872]
[1725989400795,0.42491,2353.3,2353.2,0.42492]
[1725989401096,1.1425,2353.3,2353.2,0.42492]
[1725989401295,0.7438,2353.3,2353.2,1.07804369]
[1725989401992,0.7438,2353.3,2353.2,2.14037369]
[1725989402594,2.21805355,2353.7,2353.6,0.42485]
[1725989402802,11.78632479,2354.2,2353.8,0.42482]
[1725989402803,3.01706355,2353.9,2353.8,0.42482]
[1725989403192,7.26506355,2353.9,2353.8,0.42482]
[1725989403497,5.04701,2353.9,2353.8,0.42482]
[1725989404099,0.42483,2353.8,2353.7,0.42482]
[1725989404295,4.6222,2353.9,2353.8,0.42482]
[1725989404296,0.79901,2353.9,2353.8,0.42482]
[1725989405294,0.3742,2353.9,2353.8,0.42482]
[1725989405794,0.79901,2353.9,2353.7,0.42482]
[1725989406095,4.38207,2353.8,2353.3,1.1027201]
[1725989406403,4.38207,2353.8,2353.2,6.14538015]
[1725989406404,0.42486,2353.6,2353.5,0.42487]
[1725989406798,0.42486,2353.6,2353.1,2.05268015]
[1725989406799,0.42488,2353.5,2353.3,0.42489]
[1725989407102,0.42491,2353.4,2353.2,0.42492]
[1725989407292,0.42489,2353.4,2353.2,0.42492]
[1725989407598,0.7566,2353.3,2353.2,0.42492]
[1725989407790,0.7566,2353.3,2353.2,1.07789912]
[1725989407988,0.3745,2353.5,2353.4,0.42489]
[1725989409101,4.6233,2353.5,2353.4,0.42489]
[1725989409492,0.3745,2353.5,2353.4,0.42489]
[1725989410096,0.7664,2353.8,2353.7,0.42484]
[1725989410296,0.3853,2353.8,2353.7,0.42484]
[1725989410701,0.4019,2353.9,2353.8,0.42482]
[1725989410903,3.7219,2353.9,2353.4,1.1027201]
[1725989411098,0.42487,2353.5,2353.4,0.42489]
[1725989411299,6.98560355,2353.8,2353.1,7.26350025]
[1725989411300,1.06211,2353.7,2353.1,7.26350025]
[1725989411495,0.7712,2353.4,2353.3,0.42491]
[1725989412412,1.1567,2353.4,2353.3,0.42491]
[1725989413099,1.1567,2353.4,2353.3,1.08911559]
[1725989413793,0.7712,2353.4,2353.3,1.08911559]
[1725989414503,0.42484,2353.7,2353.3,4.91380559]
[1725989414698,2.97185355,2353.9,2353.4,4.76577789]
[1725989414893,0.7538,2353.9,2353.8,0.42482]
[1725989415298,2.21805355,2354.0,2353.9,0.4248]
[1725989415906,3.34055355,2354.1,2354.0,0.42478]
[1725989416606,3.76531355,2354.1,2354.0,0.42478]
[1725989417108,3.34055355,2354.1,2354.0,0.42478]
[1725989417402,0.42479,2354.0,2353.6,4.38213]
[1725989417611,0.42479,2354.0,2353.5,1.46229]
[1725989417801,0.42479,2354.0,2353.6,20.86413983]
[1725989418107,3.76533355,2354.1,2354.0,0.42478]
[1725989418504,3.34055355,2354.1,2353.6,21.26213]
[1725989418800,3.76532355,2354.1,2354.0,0.42478]
[1725989419400,3.34055355,2354.1,2354.0,0.42478]
[1725989419797,1.1225,2354.1,2354.0,0.42478]
[1725989421209,0.42479,2354.0,2353.9,0.42479]
[1725989421411,1.1225,2354.1,2354.0,0.42478]
[1725989422906,1.54726,2354.1,2354.0,0.42478]
[1725989423110,1.06196,2354.0,2353.4,1.1027201]
[1725989423301,1.06196,2354.0,2353.7,0.42484]
[1725989423302,0.42483,2353.8,2353.7,0.42484]
[1725989423502,0.42484,2353.7,2353.6,0.42485]
[1725989423698,0.42486,2353.6,2353.5,0.42487]
[1725989423907,0.42488,2353.5,2353.3,0.4249]
[1725989424106,0.79146,2353.6,2353.4,0.42489]
[1725989424409,0.42487,2353.5,2353.1,20.2]
[1725989424609,0.42487,2353.5,2353.2,0.6642221]
[1725989424803,0.79147,2353.6,2353.4,0.42488]
[1725989425810,0.3666,2353.6,2353.4,0.42488]
[1725989426206,0.3666,2353.6,2353.5,0.42487]
[1725989426801,4.6154,2353.6,2353.5,0.42487]
[1725989427002,5.04026,2353.6,2353.4,0.42488]
[1725989427212,0.79146,2353.6,2353.4,0.42488]
[1725989427919,0.3666,2353.6,2353.3,0.4249]
[1725989428117,0.79146,2353.6,2353.4,0.42489]
[1725989428414,3.00951355,2353.6,2353.4,0.42489]
[1725989428906,2.58465355,2353.6,2353.4,0.42489]
[1725989429112,0.42488,2353.5,2353.3,0.4249]
[1725989429307,2.64293355,2353.5,2353.3,0.4249]
[1725989429510,2.64293355,2353.5,2353.1,20.2]
[1725989429713,2.64293355,2353.5,2353.3,0.4249]
[1725989430213,2.64293355,2353.5,2353.4,0.42489]
[1725989430509,0.42488,2353.5,2353.4,0.42489]
[1725989430705,0.42488,2353.5,2353.3,0.4249]
[1725989431007,0.42488,2353.5,2353.4,0.66423495]
[1725989431214,0.42488,2353.5,2353.4,1.08911819]
[1725989431419,3.00952355,2353.6,2353.4,0.42489]
[1725989431611,0.3666,2353.6,2353.5,0.42487]
[1725989431810,0.3666,2353.6,2353.5,1.08905517]
[1725989432013,0.79145,2353.6,2353.5,1.08905517]
[1725989432215,0.79145,2353.6,2353.5,0.42487]
[1725989432409,0.3666,2353.6,2353.5,0.42487]